[Event "Titled Tuesday Blitz July 26 Early 2022"]
[White "Madaminov, Mukhiddin"]
[Black "Richter, Nils"]
[WhiteFideId "14210703"]
[BlackFideId "12990809"]
[WhiteElo "2011"]
[BlackElo "2311"]
[Result "0-1"]
[Round "07"]
[TimeControl "180+1"]
[Date "2022.07.26"]
[WhiteClock "0:00:03"]
[BlackClock "0:00:58"]

1. d4 {[%clk 0:03:00]}  Nf6 {[%clk 0:02:59]} 2. Nc3 {[%clk 0:03:00]}  d5 {[%clk 0:02:58]} 3. Bf4 {[%clk 0:02:59]}  a6 {[%clk 0:02:55]} 4. e3 {[%clk 0:03:00]}  b5 {[%clk 0:02:52]} 5. Bd3 {[%clk 0:02:56]}  e6 {[%clk 0:02:52]} 6. Nf3 {[%clk 0:02:53]}  c5 {[%clk 0:02:52]} 7. dxc5 {[%clk 0:02:53]}  Bxc5 {[%clk 0:02:52]} 8. e4 {[%clk 0:02:53]}  O-O {[%clk 0:02:50]} 9. e5 {[%clk 0:02:48]}  Nh5 {[%clk 0:02:41]} 10. Bd2 {[%clk 0:02:35]}  g6 {[%clk 0:02:35]} 11. Bg5 {[%clk 0:02:22]}  Be7 {[%clk 0:02:33]} 12. h4 {[%clk 0:02:20]}  f6 {[%clk 0:02:31]} 13. exf6 {[%clk 0:02:17]}  Bxf6 {[%clk 0:02:32]} 14. Qd2 {[%clk 0:02:09]}  b4 {[%clk 0:02:30]} 15. Ne2 {[%clk 0:01:54]}  Nc6 {[%clk 0:02:28]} 16. O-O-O {[%clk 0:01:53]}  e5 {[%clk 0:02:23]} 17. Qe3 {[%clk 0:01:34]}  Qc7 {[%clk 0:02:15]} 18. Qc5 {[%clk 0:01:01]}  Be6 {[%clk 0:02:10]} 19. g4 {[%clk 0:00:57]}  Ng7 {[%clk 0:02:05]} 20. Bxf6 {[%clk 0:00:27]}  Rxf6 {[%clk 0:02:06]} 21. Ng5 {[%clk 0:00:27]}  e4 {[%clk 0:01:47]} 22. Nd4 {[%clk 0:00:27]}  exd3 {[%clk 0:01:41]} 23. Qxc6 {[%clk 0:00:24]}  Qf4+ {[%clk 0:01:37]} 24. Kb1 {[%clk 0:00:23]}  Qxd4 {[%clk 0:01:37]} 25. Qxa8+ {[%clk 0:00:22]}  Rf8 {[%clk 0:01:33]} 26. Rxd3 {[%clk 0:00:22]}  Qxg4 {[%clk 0:01:23]} 27. Qxa6 {[%clk 0:00:18]}  Bf5 {[%clk 0:01:23]} 28. Qb5 {[%clk 0:00:08]}  Bxd3 {[%clk 0:01:15]} 29. Qxd5+ {[%clk 0:00:09]}  Kh8 {[%clk 0:01:16]} 30. cxd3 {[%clk 0:00:09]}  h6 {[%clk 0:01:15]} 31. Nf7+ {[%clk 0:00:09]}  Kh7 {[%clk 0:01:16]} 32. Ne5 {[%clk 0:00:09]}  Qe2 {[%clk 0:01:12]} 33. d4 {[%clk 0:00:06]}  Rxf2 {[%clk 0:01:11]} 34. Nc4 {[%clk 0:00:03]}  Rf5 {[%clk 0:01:01]} 35. Qc6 {[%clk 0:00:02]}  Qd3+ {[%clk 0:00:58]} 36. Ka1 {[%clk 0:00:03]}  Rf1+ {[%clk 0:00:58]} 0-1


[Site "https://www.chess.com"]

[Event "Titled Tuesday Blitz July 26 Early 2022"]
[White "Makarian, Rudik"]
[Black "Sychev, Klementy"]
[WhiteFideId "44105681"]
[BlackFideId "4114060"]
[WhiteElo "2403"]
[BlackElo "2564"]
[Result "1-0"]
[Round "07"]
[TimeControl "180+1"]
[Date "2022.07.26"]
[WhiteClock "0:00:03"]
[BlackClock "0:00:17"]

1. d3 {[%clk 0:03:00]}  d5 {[%clk 0:02:51]} 2. f4 {[%clk 0:02:59]}  Nf6 {[%clk 0:02:50]} 3. Nf3 {[%clk 0:02:59]}  Nc6 {[%clk 0:02:46]} 4. Nbd2 {[%clk 0:02:51]}  Ng4 {[%clk 0:02:37]} 5. Nb3 {[%clk 0:02:48]}  d4 {[%clk 0:02:35]} 6. c3 {[%clk 0:02:41]}  e5 {[%clk 0:02:33]} 7. h3 {[%clk 0:02:17]}  Ne3 {[%clk 0:02:29]} 8. Bxe3 {[%clk 0:02:17]}  dxe3 {[%clk 0:02:29]} 9. fxe5 {[%clk 0:02:14]}  Nxe5 {[%clk 0:02:18]} 10. Qc1 {[%clk 0:02:03]}  Nxf3+ {[%clk 0:02:18]} 11. exf3 {[%clk 0:02:03]}  Qh4+ {[%clk 0:02:15]} 12. Kd1 {[%clk 0:02:03]}  Qe7 {[%clk 0:01:46]} 13. d4 {[%clk 0:01:56]}  g6 {[%clk 0:01:45]} 14. Bd3 {[%clk 0:01:56]}  Bh6 {[%clk 0:01:45]} 15. Ke2 {[%clk 0:01:56]}  Qg5 {[%clk 0:01:45]} 16. g4 {[%clk 0:01:49]}  Qf4 {[%clk 0:01:38]} 17. Qg1 {[%clk 0:01:44]}  O-O {[%clk 0:01:32]} 18. h4 {[%clk 0:01:39]}  Re8 {[%clk 0:01:21]} 19. g5 {[%clk 0:01:30]}  Bf8 {[%clk 0:01:20]} 20. Qh2 {[%clk 0:01:16]}  Bd6 {[%clk 0:01:19]} 21. Qxf4 {[%clk 0:01:16]}  Bxf4 {[%clk 0:01:20]} 22. Nc5 {[%clk 0:01:15]}  Bf5 {[%clk 0:01:15]} 23. Bxf5 {[%clk 0:01:08]}  gxf5 {[%clk 0:01:14]} 24. Nd3 {[%clk 0:01:00]}  Bd6 {[%clk 0:01:14]} 25. f4 {[%clk 0:01:01]}  Re4 {[%clk 0:01:14]} 26. Raf1 {[%clk 0:00:58]}  Rae8 {[%clk 0:01:13]} 27. Rf3 {[%clk 0:00:58]}  b6 {[%clk 0:01:13]} 28. Rhh3 {[%clk 0:00:43]}  c5 {[%clk 0:01:12]} 29. Rxe3 {[%clk 0:00:29]}  cxd4 {[%clk 0:01:12]} 30. cxd4 {[%clk 0:00:28]}  R8e7 {[%clk 0:01:12]} 31. Ne5 {[%clk 0:00:19]}  Rxf4 {[%clk 0:01:06]} 32. Nc6 {[%clk 0:00:18]}  Ree4 {[%clk 0:01:04]} 33. Kd3 {[%clk 0:00:15]}  a5 {[%clk 0:01:02]} 34. Ref3 {[%clk 0:00:14]}  Kf8 {[%clk 0:00:57]} 35. Na7 {[%clk 0:00:14]}  Rxd4+ {[%clk 0:00:56]} 36. Kc2 {[%clk 0:00:13]}  Rfe4 {[%clk 0:00:54]} 37. Nb5 {[%clk 0:00:12]}  Rc4+ {[%clk 0:00:41]} 38. Kd3 {[%clk 0:00:13]}  f4 {[%clk 0:00:35]} 39. b3 {[%clk 0:00:10]}  Rb4 {[%clk 0:00:34]} 40. a3 {[%clk 0:00:08]}  Rxb3+ {[%clk 0:00:31]} 41. Kxe4 {[%clk 0:00:08]}  Rxb5 {[%clk 0:00:32]} 42. Rd3 {[%clk 0:00:08]}  Ke7 {[%clk 0:00:31]} 43. Rb3 {[%clk 0:00:08]}  Rc5 {[%clk 0:00:26]} 44. Rxb6 {[%clk 0:00:08]}  Rc4+ {[%clk 0:00:26]} 45. Kf5 {[%clk 0:00:08]}  Rc5+ {[%clk 0:00:26]} 46. Kg4 {[%clk 0:00:09]}  Rc4 {[%clk 0:00:22]} 47. Rf3 {[%clk 0:00:09]}  a4 {[%clk 0:00:21]} 48. Ra6 {[%clk 0:00:09]}  Rd4 {[%clk 0:00:19]} 49. Kf5 {[%clk 0:00:10]}  Rd5+ {[%clk 0:00:18]} 50. Ke4 {[%clk 0:00:10]}  Re5+ {[%clk 0:00:19]} 51. Kd4 {[%clk 0:00:09]}  Rb5 {[%clk 0:00:19]} 52. Rxa4 {[%clk 0:00:08]}  Ke6 {[%clk 0:00:19]} 53. Ra6 {[%clk 0:00:07]}  Rd5+ {[%clk 0:00:16]} 54. Kc4 {[%clk 0:00:07]}  Rc5+ {[%clk 0:00:17]} 55. Kd4 {[%clk 0:00:08]}  Rd5+ {[%clk 0:00:17]} 56. Ke4 {[%clk 0:00:08]}  Re5+ {[%clk 0:00:17]} 57. Kxf4 {[%clk 0:00:07]}  Ra5+ {[%clk 0:00:16]} 58. Rxd6+ {[%clk 0:00:08]}  Kxd6 {[%clk 0:00:17]} 59. Kg4 {[%clk 0:00:08]}  Ke7 {[%clk 0:00:17]} 60. Kh5 {[%clk 0:00:09]}  Ra4 {[%clk 0:00:17]} 61. Rh3 {[%clk 0:00:04]}  Ra6 {[%clk 0:00:17]} 62. Re3+ {[%clk 0:00:03]}  Kf8 {[%clk 0:00:17]} 63. Kg4 {[%clk 0:00:04]}  Ra4+ {[%clk 0:00:17]} 64. Kg3 {[%clk 0:00:04]}  Kg7 {[%clk 0:00:17]} 65. Rf3 {[%clk 0:00:04]}  Kg6 {[%clk 0:00:17]} 66. Rf6+ {[%clk 0:00:04]}  Kg7 {[%clk 0:00:17]} 67. Rf3 {[%clk 0:00:03]}  Kg6 {[%clk 0:00:18]} 68. Kh3 {[%clk 0:00:01]}  Kh5 {[%clk 0:00:17]} 69. Rxf7 {[%clk 0:00:02]}  Rxa3+ {[%clk 0:00:15]} 70. Kg2 {[%clk 0:00:02]}  Kxh4 {[%clk 0:00:15]} 71. Rxh7+ {[%clk 0:00:03]}  Kxg5 {[%clk 0:00:16]} 72. Rh3 {[%clk 0:00:03]}  Kf6 {[%clk 0:00:17]} 73. Rxa3 {[%clk 0:00:03]} 1-0


[Site "https://www.chess.com"]

[Event "Titled Tuesday Blitz July 26 Early 2022"]
[White "Maksimovic, Bojan"]
[Black "Svane, Frederik"]
[WhiteFideId "14408120"]
[BlackFideId "12923044"]
[WhiteElo "2453"]
[BlackElo "2459"]
[Result "1-0"]
[Round "07"]
[TimeControl "180+1"]
[Date "2022.07.26"]
[WhiteClock "0:00:51"]
[BlackClock "0:00:01"]

1. e4 {[%clk 0:03:00]}  c5 {[%clk 0:02:59]} 2. Nf3 {[%clk 0:03:01]}  e6 {[%clk 0:02:59]} 3. d4 {[%clk 0:02:58]}  cxd4 {[%clk 0:03:00]} 4. Nxd4 {[%clk 0:02:59]}  Nc6 {[%clk 0:03:00]} 5. Nc3 {[%clk 0:02:59]}  a6 {[%clk 0:03:01]} 6. Nxc6 {[%clk 0:02:53]}  bxc6 {[%clk 0:03:02]} 7. Bd3 {[%clk 0:02:53]}  d5 {[%clk 0:03:02]} 8. Qf3 {[%clk 0:02:52]}  Nf6 {[%clk 0:02:58]} 9. O-O {[%clk 0:02:52]}  Be7 {[%clk 0:02:55]} 10. Qg3 {[%clk 0:02:52]}  O-O {[%clk 0:02:56]} 11. Bh6 {[%clk 0:02:52]}  Ne8 {[%clk 0:02:50]} 12. Bf4 {[%clk 0:02:44]}  Nf6 {[%clk 0:02:46]} 13. Bh6 {[%clk 0:02:42]}  Ne8 {[%clk 0:02:46]} 14. Bf4 {[%clk 0:02:36]}  Bb7 {[%clk 0:02:43]} 15. Rad1 {[%clk 0:02:33]}  Nf6 {[%clk 0:02:40]} 16. Be5 {[%clk 0:02:32]}  Kh8 {[%clk 0:02:32]} 17. Qh3 {[%clk 0:02:25]}  h6 {[%clk 0:02:28]} 18. Ne2 {[%clk 0:02:19]}  Qb6 {[%clk 0:02:15]} 19. Ng3 {[%clk 0:02:14]}  Kg8 {[%clk 0:02:03]} 20. b3 {[%clk 0:02:05]}  a5 {[%clk 0:02:00]} 21. Nh5 {[%clk 0:02:00]}  Nxh5 {[%clk 0:01:49]} 22. Qxh5 {[%clk 0:02:01]}  c5 {[%clk 0:01:19]} 23. Qg4 {[%clk 0:01:44]}  f6 {[%clk 0:01:12]} 24. Bc3 {[%clk 0:01:44]}  d4 {[%clk 0:00:31]} 25. Bd2 {[%clk 0:01:42]}  Kh7 {[%clk 0:00:18]} 26. h4 {[%clk 0:01:24]}  Ba6 {[%clk 0:00:18]} 27. h5 {[%clk 0:01:15]}  Kh8 {[%clk 0:00:04]} 28. Qg6 {[%clk 0:01:14]}  Bb7 {[%clk 0:00:01]} 29. f4 {[%clk 0:00:53]}  Bc6 {[%clk 0:00:01]} 30. e5 {[%clk 0:00:51]}  Be8 {[%clk 0:00:01]} 31. Qh7# {[%clk 0:00:51]} 1-0


[Site "https://www.chess.com"]

[Event "Titled Tuesday Blitz July 26 Early 2022"]
[White "Mardov, Dimitar"]
[Black "Pranav, V"]
[WhiteFideId "30919495"]
[BlackFideId "25060783"]
[WhiteElo "2185"]
[BlackElo "2380"]
[Result "1-0"]
[Round "07"]
[TimeControl "180+1"]
[Date "2022.07.26"]
[WhiteClock "0:00:22"]
[BlackClock "0:00:02"]

1. d4 {[%clk 0:03:00]}  Nf6 {[%clk 0:02:58]} 2. Nf3 {[%clk 0:03:00]}  e6 {[%clk 0:02:57]} 3. c4 {[%clk 0:03:01]}  h6 {[%clk 0:02:57]} 4. Nc3 {[%clk 0:02:59]}  Bb4 {[%clk 0:02:57]} 5. Qc2 {[%clk 0:02:57]}  c5 {[%clk 0:02:57]} 6. a3 {[%clk 0:02:54]}  Bxc3+ {[%clk 0:02:55]} 7. Qxc3 {[%clk 0:02:54]}  b6 {[%clk 0:02:54]} 8. e3 {[%clk 0:02:49]}  Bb7 {[%clk 0:02:54]} 9. Be2 {[%clk 0:02:49]}  O-O {[%clk 0:02:55]} 10. O-O {[%clk 0:02:49]}  d6 {[%clk 0:02:55]} 11. Rd1 {[%clk 0:02:49]}  Qe7 {[%clk 0:02:55]} 12. b3 {[%clk 0:02:49]}  Ne4 {[%clk 0:02:54]} 13. Qc2 {[%clk 0:02:49]}  f5 {[%clk 0:02:54]} 14. Bb2 {[%clk 0:02:49]}  Nd7 {[%clk 0:02:55]} 15. b4 {[%clk 0:02:47]}  Rac8 {[%clk 0:02:53]} 16. bxc5 {[%clk 0:02:46]}  bxc5 {[%clk 0:02:54]} 17. Rab1 {[%clk 0:02:37]}  Ng5 {[%clk 0:02:52]} 18. d5 {[%clk 0:02:02]}  Nxf3+ {[%clk 0:02:43]} 19. Bxf3 {[%clk 0:02:03]}  e5 {[%clk 0:02:44]} 20. Bc3 {[%clk 0:01:47]}  Ba8 {[%clk 0:02:39]} 21. Be2 {[%clk 0:01:42]}  Qg5 {[%clk 0:02:18]} 22. Qa4 {[%clk 0:01:37]}  Nf6 {[%clk 0:02:12]} 23. Qxa7 {[%clk 0:01:34]}  Ne4 {[%clk 0:02:11]} 24. Be1 {[%clk 0:01:34]}  f4 {[%clk 0:02:08]} 25. f3 {[%clk 0:01:26]}  Ng3 {[%clk 0:01:37]} 26. hxg3 {[%clk 0:01:21]}  fxg3 {[%clk 0:01:37]} 27. e4 {[%clk 0:01:15]}  Kh7 {[%clk 0:01:16]} 28. Qd7 {[%clk 0:01:12]}  h5 {[%clk 0:00:37]} 29. Bd2 {[%clk 0:00:57]}  Qg6 {[%clk 0:00:27]} 30. Rb6 {[%clk 0:00:57]}  Rcd8 {[%clk 0:00:26]} 31. Qe6 {[%clk 0:00:56]}  Rf6 {[%clk 0:00:25]} 32. Qh3 {[%clk 0:00:54]}  Rf7 {[%clk 0:00:18]} 33. Qh4 {[%clk 0:00:48]}  Rdd7 {[%clk 0:00:05]} 34. Qg5 {[%clk 0:00:47]}  Qxg5 {[%clk 0:00:05]} 35. Bxg5 {[%clk 0:00:48]}  Ra7 {[%clk 0:00:04]} 36. Ra1 {[%clk 0:00:47]}  Rfd7 {[%clk 0:00:02]} 37. Bh4 {[%clk 0:00:45]}  Rab7 {[%clk 0:00:02]} 38. Rxb7 {[%clk 0:00:41]}  Rxb7 {[%clk 0:00:03]} 39. Bxg3 {[%clk 0:00:41]}  Rb2 {[%clk 0:00:04]} 40. Kf2 {[%clk 0:00:41]}  g5 {[%clk 0:00:04]} 41. Ke3 {[%clk 0:00:40]}  Bb7 {[%clk 0:00:03]} 42. Be1 {[%clk 0:00:37]}  Ba6 {[%clk 0:00:03]} 43. Bc3 {[%clk 0:00:33]}  Rb3 {[%clk 0:00:02]} 44. Kd3 {[%clk 0:00:32]}  Kg6 {[%clk 0:00:02]} 45. Bd1 {[%clk 0:00:28]}  Rb8 {[%clk 0:00:02]} 46. a4 {[%clk 0:00:25]}  g4 {[%clk 0:00:02]} 47. fxg4 {[%clk 0:00:25]}  h4 {[%clk 0:00:02]} 48. Bf3 {[%clk 0:00:22]}  Rf8 {[%clk 0:00:01]} 49. Rh1 {[%clk 0:00:21]}  Rh8 {[%clk 0:00:01]} 50. Be1 {[%clk 0:00:21]}  h3 {[%clk 0:00:01]} 51. Rxh3 {[%clk 0:00:21]}  Rxh3 {[%clk 0:00:02]} 52. gxh3 {[%clk 0:00:22]} 1-0


[Site "https://www.chess.com"]

[Event "Titled Tuesday Blitz July 26 Early 2022"]
[White "Melkumyan, Hrant"]
[Black "Csonka, Balazs"]
[WhiteFideId "13302485"]
[BlackFideId "742910"]
[WhiteElo "2604"]
[BlackElo "2404"]
[Result "1-0"]
[Round "07"]
[TimeControl "180+1"]
[Date "2022.07.26"]
[WhiteClock "0:02:28"]
[BlackClock "0:00:59"]

1. Nf3 {[%clk 0:03:00]}  Nf6 {[%clk 0:02:58]} 2. c4 {[%clk 0:03:00]}  c6 {[%clk 0:02:55]} 3. Nc3 {[%clk 0:03:00]}  d5 {[%clk 0:02:55]} 4. e3 {[%clk 0:03:01]}  e6 {[%clk 0:02:49]} 5. d4 {[%clk 0:03:00]}  Nbd7 {[%clk 0:02:48]} 6. Qc2 {[%clk 0:03:01]}  b6 {[%clk 0:02:47]} 7. b3 {[%clk 0:02:59]}  Bb7 {[%clk 0:02:46]} 8. Bb2 {[%clk 0:02:59]}  Be7 {[%clk 0:02:44]} 9. Bd3 {[%clk 0:02:59]}  O-O {[%clk 0:02:45]} 10. O-O {[%clk 0:02:59]}  h6 {[%clk 0:02:44]} 11. Rad1 {[%clk 0:02:59]}  Qc7 {[%clk 0:02:41]} 12. Qe2 {[%clk 0:02:59]}  Rfe8 {[%clk 0:02:33]} 13. e4 {[%clk 0:02:58]}  dxe4 {[%clk 0:02:29]} 14. Nxe4 {[%clk 0:02:58]}  Nxe4 {[%clk 0:02:19]} 15. Qxe4 {[%clk 0:02:56]}  Nf6 {[%clk 0:02:20]} 16. Qh4 {[%clk 0:02:53]}  c5 {[%clk 0:02:12]} 17. Ne5 {[%clk 0:02:43]}  cxd4 {[%clk 0:02:00]} 18. Bxd4 {[%clk 0:02:43]}  Rad8 {[%clk 0:01:57]} 19. Ba1 {[%clk 0:02:41]}  Nd7 {[%clk 0:01:09]} 20. Qh5 {[%clk 0:02:30]}  Nf6 {[%clk 0:00:59]} 21. Qxf7+ {[%clk 0:02:28]} 1-0


[Site "https://www.chess.com"]

[Event "Titled Tuesday Blitz July 26 Early 2022"]
[White "Mikhailovsky, Vladimir"]
[Black "Shohat, Yotam"]
[WhiteFideId "34105414"]
[BlackFideId "2813955"]
[WhiteElo "2303"]
[BlackElo "2119"]
[Result "0-1"]
[Round "07"]
[TimeControl "180+1"]
[Date "2022.07.27"]
[WhiteClock "0:01:06"]
[BlackClock "0:00:20"]

1. d4 {[%clk 0:03:00]}  Nf6 {[%clk 0:03:00]} 2. c4 {[%clk 0:02:57]}  g6 {[%clk 0:02:57]} 3. Nc3 {[%clk 0:02:57]}  Bg7 {[%clk 0:02:57]} 4. e4 {[%clk 0:02:57]}  O-O {[%clk 0:02:57]} 5. Nf3 {[%clk 0:02:56]}  d6 {[%clk 0:02:54]} 6. Be2 {[%clk 0:02:56]}  Na6 {[%clk 0:02:54]} 7. O-O {[%clk 0:02:55]}  e5 {[%clk 0:02:53]} 8. Be3 {[%clk 0:02:55]}  Re8 {[%clk 0:02:51]} 9. d5 {[%clk 0:02:37]}  Ng4 {[%clk 0:02:40]} 10. Bg5 {[%clk 0:02:37]}  f6 {[%clk 0:02:34]} 11. Bd2 {[%clk 0:02:37]}  f5 {[%clk 0:02:29]} 12. Ng5 {[%clk 0:02:31]}  Nf6 {[%clk 0:02:23]} 13. exf5 {[%clk 0:02:09]}  gxf5 {[%clk 0:02:21]} 14. f4 {[%clk 0:02:04]}  e4 {[%clk 0:02:20]} 15. Be3 {[%clk 0:02:01]}  h6 {[%clk 0:02:16]} 16. Nh3 {[%clk 0:01:41]}  c5 {[%clk 0:01:37]} 17. dxc6 {[%clk 0:01:34]}  bxc6 {[%clk 0:01:35]} 18. Rc1 {[%clk 0:01:35]}  Be6 {[%clk 0:01:30]} 19. Qa4 {[%clk 0:01:26]}  Nc5 {[%clk 0:01:11]} 20. Qa3 {[%clk 0:01:22]}  Nd3 {[%clk 0:01:03]} 21. Rcd1 {[%clk 0:01:19]}  Bxc4 {[%clk 0:00:59]} 22. Nf2 {[%clk 0:01:18]}  d5 {[%clk 0:00:47]} 23. Bxd3 {[%clk 0:01:17]}  exd3 {[%clk 0:00:46]} 24. Bd4 {[%clk 0:01:18]}  Ne4 {[%clk 0:00:27]} 25. Bxg7 {[%clk 0:01:17]}  Kxg7 {[%clk 0:00:23]} 26. Nxd3 {[%clk 0:01:18]}  Bxd3 {[%clk 0:00:21]} 27. Rxd3 {[%clk 0:01:07]}  Qb6+ {[%clk 0:00:21]} 28. Kh1 {[%clk 0:01:07]}  Nf2+ {[%clk 0:00:21]} 29. Rxf2 {[%clk 0:01:06]}  Re1+ {[%clk 0:00:20]} 0-1


[Site "https://www.chess.com"]

[Event "Titled Tuesday Blitz July 26 Early 2022"]
[White "Prieto Aranguren, Alain"]
[Black "Kujawski, Adam"]
[WhiteFideId "2268906"]
[BlackFideId "1100920"]
[WhiteElo "2224"]
[BlackElo "1972"]
[Result "0-1"]
[Round "07"]
[TimeControl "180+1"]
[Date "2022.07.27"]
[WhiteClock "0:00:01"]
[BlackClock "0:00:04"]

1. e4 {[%clk 0:02:52]}  e5 {[%clk 0:02:59]} 2. Nf3 {[%clk 0:02:51]}  Nc6 {[%clk 0:02:59]} 3. Bc4 {[%clk 0:02:49]}  Nf6 {[%clk 0:02:59]} 4. c3 {[%clk 0:02:47]}  Nxe4 {[%clk 0:02:58]} 5. O-O {[%clk 0:02:44]}  d5 {[%clk 0:02:58]} 6. Bb5 {[%clk 0:02:37]}  Bd6 {[%clk 0:02:58]} 7. d4 {[%clk 0:02:30]}  exd4 {[%clk 0:02:56]} 8. Nxd4 {[%clk 0:02:30]}  Bd7 {[%clk 0:02:56]} 9. c4 {[%clk 0:02:24]}  Nxd4 {[%clk 0:02:33]} 10. Qxd4 {[%clk 0:02:20]}  Bxb5 {[%clk 0:02:33]} 11. Qxg7 {[%clk 0:02:08]}  Bxh2+ {[%clk 0:01:55]} 12. Kxh2 {[%clk 0:02:09]}  Qh4+ {[%clk 0:01:55]} 13. Kg1 {[%clk 0:02:09]}  O-O-O {[%clk 0:01:54]} 14. Qh6 {[%clk 0:02:09]}  Qxh6 {[%clk 0:01:48]} 15. Bxh6 {[%clk 0:01:54]}  Bxc4 {[%clk 0:01:48]} 16. Rc1 {[%clk 0:01:53]}  Rhg8 {[%clk 0:01:46]} 17. Nd2 {[%clk 0:01:39]}  Nxd2 {[%clk 0:01:45]} 18. Bxd2 {[%clk 0:01:38]}  Rg4 {[%clk 0:01:44]} 19. f3 {[%clk 0:01:25]}  Rg6 {[%clk 0:01:43]} 20. Bf4 {[%clk 0:01:20]}  c6 {[%clk 0:01:43]} 21. b3 {[%clk 0:01:15]}  Ba6 {[%clk 0:01:43]} 22. Kf2 {[%clk 0:01:10]}  Re6 {[%clk 0:01:42]} 23. Re1 {[%clk 0:01:06]}  Rde8 {[%clk 0:01:42]} 24. Rxe6 {[%clk 0:01:01]}  Rxe6 {[%clk 0:01:37]} 25. Be3 {[%clk 0:00:55]}  Bd3 {[%clk 0:01:26]} 26. Rd1 {[%clk 0:00:50]}  Bg6 {[%clk 0:01:22]} 27. Bxa7 {[%clk 0:00:44]}  Kc7 {[%clk 0:01:23]} 28. Bd4 {[%clk 0:00:39]}  b6 {[%clk 0:01:22]} 29. b4 {[%clk 0:00:34]}  Re8 {[%clk 0:01:20]} 30. Ra1 {[%clk 0:00:28]}  Bd3 {[%clk 0:00:55]} 31. a4 {[%clk 0:00:23]}  Re2+ {[%clk 0:00:54]} 32. Kg3 {[%clk 0:00:24]}  Rc2 {[%clk 0:00:44]} 33. a5 {[%clk 0:00:21]}  bxa5 {[%clk 0:00:44]} 34. bxa5 {[%clk 0:00:21]}  c5 {[%clk 0:00:44]} 35. a6 {[%clk 0:00:12]}  Kb8 {[%clk 0:00:32]} 36. Rd1 {[%clk 0:00:09]}  Bxa6 {[%clk 0:00:30]} 37. Be5+ {[%clk 0:00:06]}  Kb7 {[%clk 0:00:30]} 38. Rxd5 {[%clk 0:00:06]}  Bc4 {[%clk 0:00:13]} 39. Rd7+ {[%clk 0:00:06]}  Kc6 {[%clk 0:00:13]} 40. Rd6+ {[%clk 0:00:06]}  Kb5 {[%clk 0:00:13]} 41. Kh3 {[%clk 0:00:05]}  Bf1 {[%clk 0:00:12]} 42. Rd7 {[%clk 0:00:03]}  Rxg2 {[%clk 0:00:09]} 43. Kh4 {[%clk 0:00:02]}  Re2 {[%clk 0:00:08]} 44. f4 {[%clk 0:00:01]}  c4 {[%clk 0:00:07]} 45. Rxf7 {[%clk 0:00:01]}  Bg2 {[%clk 0:00:06]} 46. Rxh7 {[%clk 0:00:01]}  Be4 {[%clk 0:00:06]} 47. Rg7 {[%clk 0:00:01]}  c3 {[%clk 0:00:06]} 48. Rg3 {[%clk 0:00:02]}  c2 {[%clk 0:00:05]} 49. Bb2 {[%clk 0:00:03]}  Kc4 {[%clk 0:00:05]} 50. Rc3+ {[%clk 0:00:03]}  Kb4 {[%clk 0:00:05]} 51. Kg5 {[%clk 0:00:03]}  c1=Q {[%clk 0:00:04]} 52. Rxc1 {[%clk 0:00:03]}  Rxb2 {[%clk 0:00:04]} 53. f5 {[%clk 0:00:04]}  Rf2 {[%clk 0:00:04]} 54. f6 {[%clk 0:00:04]}  Bc2 {[%clk 0:00:04]} 55. f7 {[%clk 0:00:03]}  Bb3 {[%clk 0:00:04]} 56. f8=Q+ {[%clk 0:00:03]}  Rxf8 {[%clk 0:00:04]} 57. Re1 {[%clk 0:00:04]}  Rb8 {[%clk 0:00:04]} 58. Re4+ {[%clk 0:00:04]}  Bc4 {[%clk 0:00:05]} 59. Kf4 {[%clk 0:00:04]}  Rd8 {[%clk 0:00:05]} 60. Ke5 {[%clk 0:00:04]}  Kc5 {[%clk 0:00:05]} 61. Re3 {[%clk 0:00:04]}  Re8+ {[%clk 0:00:06]} 62. Kf4 {[%clk 0:00:05]}  Rf8+ {[%clk 0:00:06]} 63. Ke5 {[%clk 0:00:05]}  Bd5 {[%clk 0:00:05]} 64. Rc3+ {[%clk 0:00:04]}  Bc4 {[%clk 0:00:05]} 65. Re3 {[%clk 0:00:05]}  Re8+ {[%clk 0:00:06]} 66. Kf4 {[%clk 0:00:05]}  Rd8 {[%clk 0:00:05]} 67. Ke5 {[%clk 0:00:05]}  Bb5 {[%clk 0:00:04]} 68. Rc3+ {[%clk 0:00:05]}  Kb6 {[%clk 0:00:04]} 69. Rc1 {[%clk 0:00:04]}  Bc6 {[%clk 0:00:04]} 70. Ke6 {[%clk 0:00:04]}  Re8+ {[%clk 0:00:04]} 71. Kf7 {[%clk 0:00:04]}  Re2 {[%clk 0:00:05]} 72. Kf6 {[%clk 0:00:04]}  Kc7 {[%clk 0:00:05]} 73. Kf5 {[%clk 0:00:04]}  Kd6 {[%clk 0:00:06]} 74. Kf4 {[%clk 0:00:05]}  Bd5 {[%clk 0:00:06]} 75. Ra1 {[%clk 0:00:04]}  Re8 {[%clk 0:00:06]} 76. Kf5 {[%clk 0:00:05]}  Rf8+ {[%clk 0:00:05]} 77. Kg5 {[%clk 0:00:04]}  Ke5 {[%clk 0:00:05]} 78. Ra5 {[%clk 0:00:04]}  Rg8+ {[%clk 0:00:06]} 79. Kh5 {[%clk 0:00:04]}  Rg1 {[%clk 0:00:07]} 80. Rb5 {[%clk 0:00:03]}  Ke6 {[%clk 0:00:07]} 81. Kh4 {[%clk 0:00:04]}  Bc6 {[%clk 0:00:06]} 82. Ra5 {[%clk 0:00:04]}  Kf6 {[%clk 0:00:05]} 83. Rc5 {[%clk 0:00:03]}  Be4 {[%clk 0:00:04]} 84. Ra5 {[%clk 0:00:03]}  Rg2 {[%clk 0:00:03]} 85. Rc5 {[%clk 0:00:01]}  Rg8 {[%clk 0:00:03]} 86. Ra5 {[%clk 0:00:02]}  Bf5 {[%clk 0:00:04]} 87. Ra6+ {[%clk 0:00:02]}  Ke5 {[%clk 0:00:04]} 88. Ra5+ {[%clk 0:00:02]}  Kf4 {[%clk 0:00:04]} 89. Ra4+ {[%clk 0:00:01]}  Be4 {[%clk 0:00:04]} 0-1


[Site "https://www.chess.com"]